fUSD/lending_fUSD_20240227
["ID","MTS","AMOUNT","RATE_DAILY","PERIOD"]
[315420645,1709023835816,-500.0,0.00022798,2]
[315420646,1709023835826,-346.36672448,0.00022798,2]
[315420647,1709023835859,-1000.0,0.000225,2]
[315420648,1709023835870,-203.33361856,0.00022798,2]
[315420649,1709023835880,-1450.16946804,0.00022799,2]
[315420650,1709023835931,-500.0,0.00022799,2]
[315420651,1709023835941,-534.0571112,0.00022799,2]
[315420652,1709023835950,-213.63940303,0.00022799,2]
[315420653,1709023835959,-500.0,0.00022799,2]
[315420654,1709023835968,-500.0,0.00022799,2]
[315420655,1709023835978,-500.0,0.00022799,2]
[315420656,1709023835987,-500.0,0.00022799,2]
[315420657,1709023835996,-500.0,0.00022799,2]
[315420658,1709023836005,-500.0,0.00022799,2]
[315420659,1709023836014,-500.0,0.00022799,2]
[315420660,1709023836024,-500.0,0.00022799,2]
[315420661,1709023836033,-500.0,0.00022799,2]
[315420662,1709023836042,-500.0,0.00022799,2]
[315420663,1709023836051,-500.0,0.00022799,2]
[315420664,1709023836060,-500.0,0.00022799,2]
[315420665,1709023836070,-500.0,0.00022799,2]
[315420666,1709023836079,-500.0,0.00022799,2]
[315420667,1709023836087,-500.0,0.00022799,2]
[315420668,1709023836096,-994.1,0.00022799,2]
[315420669,1709023836106,-500.0,0.00022799,2]
[315420670,1709023836116,-500.0,0.00022799,2]
[315420671,1709023836125,-500.0,0.00022799,2]
[315420672,1709023836135,-500.0,0.00022799,2]
[315420673,1709023836148,-500.0,0.00022799,2]
[315420674,1709023836157,-500.0,0.00022799,2]
[315420675,1709023836166,-500.0,0.00022799,2]
[315420676,1709023836175,-500.0,0.00022799,2]
[315420677,1709023836186,-500.0,0.00022799,2]
[315420678,1709023836195,-500.0,0.00022799,2]
[315420679,1709023836205,-500.0,0.00022799,2]
[315420680,1709023836215,-500.0,0.00022799,2]
[315420681,1709023836225,-500.0,0.00022799,2]
[315420682,1709023836235,-500.0,0.00022799,2]
[315420683,1709023836245,-500.0,0.00022799,2]
[315420684,1709023836254,-500.0,0.00022799,2]
[315420685,1709023836264,-500.0,0.00022799,2]
[315420686,1709023836274,-500.0,0.00022799,2]
[315420687,1709023836284,-500.0,0.00022799,2]
[315420688,1709023836293,-500.0,0.00022799,2]
[315420689,1709023836304,-500.0,0.00022799,2]
[315420690,1709023836314,-427.49,0.00022799,2]
[315420691,1709023836324,-2140.06,0.00022799,2]
[315420692,1709023836334,-502.05553975,0.00022799,2]
[315420693,1709023836344,-500.0,0.00022799,2]
[315420694,1709023836354,-168.95552952,0.00022799,2]
[315420695,1709023836364,-500.0,0.00022799,2]
[315420696,1709023836374,-500.0,0.00022799,2]
[315420697,1709023836385,-500.0,0.00022799,2]
[315420698,1709023836394,-500.0,0.00022799,2]
[315420699,1709023836403,-236.14,0.00022799,2]
[315420700,1709023836413,-500.0,0.00022799,2]
[315420701,1709023836422,-529.95766323,0.00022799,2]
[315420702,1709023836432,-435.48,0.00022799,2]
[315420703,1709023836442,-500.0,0.00022799,2]
[315420704,1709023836451,-500.0,0.00022799,2]
[315420705,1709023836461,-1000.0,0.000228,4]
[315420706,1709023836470,-1000.0,0.000228,5]
[315420707,1709023836480,-1000.0,0.000228,6]
[315420708,1709023836489,-1971.35140581,0.00022817,2]
[315420709,1709023836499,-648.0,0.00022833,2]
[315420710,1709023836509,-161.0,0.00022833,2]
[315420711,1709023836519,-230.41,0.00022841,2]
[315420712,1709023836529,-500.0,0.00022897,2]
[315420713,1709023836539,-500.0,0.00022897,2]
[315420714,1709023836548,-500.0,0.00022897,2]
[315420715,1709023836558,-994.1,0.00022897,2]
[315420716,1709023836567,-500.0,0.00022897,2]
[315420717,1709023836576,-153.18611558,0.00022897,2]
[315420718,1709023836585,-500.0,0.00022897,2]
[315420719,1709023836595,-162.38,0.00022897,2]
[315420720,1709023836604,-500.0,0.00022897,2]
[315420721,1709023836615,-500.0,0.00022897,2]
[315420722,1709023836624,-500.0,0.00022897,2]
[315420723,1709023836634,-500.0,0.00022897,2]
[315420724,1709023836644,-500.0,0.00022897,2]
[315420725,1709023836654,-2140.06,0.00022897,2]
[315420726,1709023836663,-500.0,0.00022897,2]
[315420727,1709023836672,-500.0,0.00022897,2]
[315420728,1709023836682,-500.0,0.00022897,2]
[315420729,1709023836691,-500.0,0.00022897,2]
[315420730,1709023836700,-500.0,0.00022897,2]
[315420731,1709023836710,-500.0,0.00022897,2]
[315420732,1709023836720,-500.0,0.00022897,2]
[315420733,1709023836729,-7335.06696084,0.00022897,2]
[315420734,1709023836738,-500.0,0.00022897,2]
[315420735,1709023836747,-283.28560129,0.00022897,2]
[315420736,1709023836756,-500.0,0.00022897,2]
[315420737,1709023836766,-353.56904568,0.00022897,2]
[315420738,1709023836775,-500.0,0.00022897,2]
[315420739,1709023836785,-500.0,0.00022897,2]
[315420740,1709023836794,-500.0,0.00022897,2]
[315420741,1709023836803,-500.0,0.00022897,2]
[315420742,1709023836812,-500.0,0.00022897,2]
[315420743,1709023836821,-569.01,0.00022897,2]
[315420744,1709023836830,-2886.28,0.00022897,2]
[315420745,1709023836839,-637.39,0.00022897,2]
[315420746,1709023836848,-500.0,0.00022897,2]
[315420747,1709023836857,-592.15,0.00022897,2]
[315420748,1709023836866,-500.0,0.00022897,2]
[315420749,1709023836875,-177.66065642,0.00022897,2]
[315420750,1709023836886,-572.45,0.00022897,2]
[315420751,1709023836894,-335.46766919,0.00022897,2]
[315420752,1709023836903,-500.0,0.00022897,2]
[315420753,1709023836913,-537.12878806,0.00022897,2]
[315420754,1709023836922,-500.0,0.00022897,2]
[315420755,1709023836931,-500.0,0.00022897,2]
[315420756,1709023836939,-500.0,0.00022897,2]
[315420757,1709023836949,-1269.98,0.00022897,2]
[315420758,1709023836958,-500.0,0.00022897,2]
[315420759,1709023836967,-500.0,0.00022897,2]
[315420760,1709023836976,-500.0,0.00022897,2]
[315420761,1709023836985,-500.0,0.00022897,2]
[315420762,1709023836994,-500.0,0.00022897,2]
[315420763,1709023837003,-739.94,0.00022897,2]
[315420764,1709023837013,-500.0,0.00022897,2]
[315420765,1709023837022,-500.0,0.00022897,2]
[315420766,1709023837031,-500.0,0.00022897,2]
[315420767,1709023837040,-543.80329395,0.00022897,2]
[315420768,1709023837049,-500.0,0.00022897,2]
[315420769,1709023837058,-500.0,0.00022897,2]
[315420770,1709023837067,-3508.75,0.00022897,2]
[315420771,1709023837077,-500.0,0.00022897,2]
[315420772,1709023837086,-249.08408276,0.00022897,2]
[315420773,1709023837094,-500.0,0.00022897,2]
[315420774,1709023837103,-500.0,0.00022897,2]
[315420775,1709023837113,-500.0,0.00022897,2]
[315420776,1709023837123,-500.0,0.00022897,2]
[315420777,1709023837133,-636.45,0.00022897,2]
[315420778,1709023837144,-867.37,0.00022897,2]
[315420779,1709023837159,-567.93,0.00022897,2]
[315420780,1709023837169,-500.0,0.00022897,2]
[315420781,1709023837178,-546.02,0.00022897,2]
[315420782,1709023837187,-500.0,0.00022897,2]
[315420783,1709023837196,-500.0,0.00022897,2]
[315420784,1709023837205,-740.76,0.00022897,2]
[315420785,1709023837215,-3136.42,0.00022897,2]
[315420786,1709023837225,-500.0,0.00022897,2]
[315420787,1709023837235,-500.0,0.00022897,2]
[315420788,1709023837244,-1649.97,0.00022897,2]
[315420789,1709023837252,-500.0,0.00022897,2]
[315420790,1709023837261,-500.0,0.00022897,2]
[315420791,1709023837270,-238.38561985,0.00022897,2]
[315420792,1709023837279,-458.66,0.00022897,2]
[315420793,1709023837289,-500.0,0.00022897,2]
[315420795,1709023837299,-550.2,0.00022897,2]
[315420797,1709023837309,-697.07,0.00022897,2]
[315420798,1709023837318,-2269.66,0.00022897,2]
[315420799,1709023837327,-516.32,0.00022897,2]
[315420800,1709023837337,-500.0,0.00022897,2]
[315420801,1709023837346,-500.0,0.00022897,2]
[315420802,1709023837355,-500.0,0.00022898,2]
[315420803,1709023837364,-500.0,0.00022898,2]
[315420804,1709023837372,-500.0,0.00022898,2]
[315420805,1709023837382,-500.0,0.00022898,2]
[315420806,1709023837391,-500.0,0.00022898,2]
[315420807,1709023837400,-420.88484402,0.00022898,2]
[315420808,1709023837409,-500.0,0.00022898,2]
[315420809,1709023837418,-500.0,0.00022898,2]
[315420810,1709023837428,-500.0,0.00022898,2]
[315420811,1709023837437,-500.0,0.00022898,2]
[315420812,1709023837446,-500.0,0.00022898,2]
[315420813,1709023837455,-500.0,0.00022898,2]
[315420814,1709023837464,-500.0,0.00022898,2]
[315420815,1709023837473,-500.0,0.00022898,2]
[315420816,1709023837482,-500.0,0.00022898,2]
[315420817,1709023837491,-500.0,0.00022898,2]
[315420818,1709023837501,-500.0,0.00022898,2]
[315420819,1709023837510,-500.0,0.00022898,2]
[315420820,1709023837519,-500.0,0.00022898,2]
[315420821,1709023837529,-500.0,0.00022898,2]
[315420822,1709023837538,-500.0,0.00022898,2]
[315420823,1709023837548,-500.0,0.00022898,2]
[315420824,1709023837557,-500.0,0.00022898,2]
[315420825,1709023837567,-500.0,0.00022898,2]
[315420826,1709023837576,-631.6,0.00022898,2]
[315420827,1709023837585,-500.0,0.00022898,2]
[315420828,1709023837595,-500.0,0.00022898,2]
[315420829,1709023837604,-500.0,0.00022898,2]
[315420830,1709023837614,-500.0,0.00022898,2]
[315420831,1709023837622,-500.0,0.00022898,2]
[315420832,1709023837632,-256.13,0.00022898,2]
[315420833,1709023837643,-500.0,0.00022898,2]
[315420834,1709023837652,-500.0,0.00022898,2]
[315420835,1709023837661,-500.0,0.00022898,2]
[315420836,1709023837670,-186.46195271,0.00022898,2]
[315420837,1709023837679,-500.0,0.00022898,2]
[315420838,1709023837688,-500.0,0.00022898,2]
[315420839,1709023837697,-500.0,0.00022898,2]
[315420840,1709023837706,-456.04,0.00022898,2]
[315420841,1709023837714,-208.28,0.00022898,2]
[315420842,1709023837723,-401.09631013,0.00022898,2]
[315420843,1709023837732,-500.0,0.00022898,2]
[315420844,1709023837741,-500.0,0.00022898,2]
[315420845,1709023837750,-560.05746512,0.00022898,2]
[315420846,1709023837759,-713.12,0.00022898,2]
[315420847,1709023837768,-500.0,0.00022898,2]
[315420848,1709023837777,-500.0,0.00022898,2]
[315420849,1709023837786,-522.35,0.00022898,2]
[315420850,1709023837796,-500.0,0.00022898,2]
[315420851,1709023837804,-500.0,0.00022898,2]
[315420852,1709023837813,-500.0,0.00022898,2]
[315420853,1709023837822,-500.0,0.00022898,2]
[315420854,1709023837831,-500.0,0.00022898,2]
[315420855,1709023837841,-1481.01,0.00022898,2]
[315420856,1709023837851,-458.02,0.00022898,2]
[315420857,1709023837860,-535.69,0.00022898,2]
[315420858,1709023837870,-500.0,0.00022898,2]
[315420859,1709023837879,-931.6,0.00022898,2]
[315420860,1709023837888,-500.0,0.00022898,2]
[315420861,1709023837897,-500.0,0.00022898,2]
[315420862,1709023837906,-500.0,0.00022898,2]
[315420863,1709023837914,-500.0,0.00022898,2]
[315420864,1709023837923,-500.0,0.00022898,2]
[315420865,1709023837932,-500.0,0.00022898,2]
[315420866,1709023837941,-629.95,0.00022898,2]
[315420867,1709023837950,-500.0,0.00022898,2]
[315420868,1709023837959,-500.0,0.00022898,2]
[315420869,1709023837968,-500.0,0.00022898,2]
[315420870,1709023837976,-339.62942672,0.00022898,2]
[315420871,1709023837985,-500.0,0.00022898,2]
[315420872,1709023837994,-500.0,0.00022898,2]
[315420873,1709023838005,-500.0,0.00022898,2]
[315420874,1709023838014,-500.0,0.00022898,2]
[315420875,1709023838023,-500.0,0.00022898,2]
[315420876,1709023838032,-500.0,0.00022898,2]
[315420877,1709023838041,-500.0,0.00022898,2]
[315420878,1709023838050,-500.0,0.00022898,2]
[315420879,1709023838058,-500.0,0.00022898,2]
[315420880,1709023838067,-500.0,0.00022898,2]
[315420881,1709023838076,-500.0,0.00022898,2]
[315420882,1709023838086,-2313.04,0.00022898,2]
[315420883,1709023838094,-500.0,0.00022898,2]
[315420884,1709023838103,-500.0,0.00022898,2]
[315420885,1709023838113,-500.0,0.00022898,2]
[315420886,1709023838126,-500.0,0.00022898,2]
[315420887,1709023838135,-500.0,0.00022898,2]
[315420888,1709023838144,-500.0,0.00022898,2]
[315420889,1709023838155,-500.0,0.00022898,2]
[315420890,1709023838165,-500.0,0.00022898,2]
[315420891,1709023838174,-307.53477832,0.00022898,2]
[315420892,1709023838183,-500.0,0.00022898,2]
[315420893,1709023838192,-500.0,0.00022898,2]
[315420894,1709023838202,-769.07,0.00022898,2]
[315420895,1709023838212,-500.0,0.00022899,2]
[315420896,1709023838222,-500.0,0.00022899,2]
[315420897,1709023838231,-500.0,0.00022899,2]
[315420898,1709023838240,-500.0,0.00022899,2]
[315420899,1709023838249,-500.0,0.00022899,2]
[315420900,1709023838258,-500.0,0.00022899,2]
[315420901,1709023838268,-500.0,0.00022899,2]
[315420902,1709023838277,-500.0,0.00022899,2]
[315420903,1709023838286,-500.0,0.00022899,2]
[315420904,1709023838295,-500.0,0.00022899,2]
[315420905,1709023838304,-500.0,0.00022899,2]
[315420906,1709023838314,-500.0,0.00022899,2]
[315420907,1709023838324,-500.0,0.00022899,2]
[315420908,1709023838333,-500.0,0.00022899,2]
[315420909,1709023838342,-500.0,0.00022899,2]
[315420910,1709023838352,-500.0,0.00022899,2]
[315420911,1709023838362,-500.0,0.00022899,2]
[315420912,1709023838371,-500.0,0.00022899,2]
[315420913,1709023838381,-500.0,0.00022899,2]
[315420914,1709023838391,-500.0,0.00022899,2]
[315420915,1709023838400,-500.0,0.00022899,2]
[315420916,1709023838409,-545.83069302,0.00022899,2]
[315420917,1709023838418,-500.0,0.00022899,2]
[315420918,1709023838428,-500.0,0.00022899,2]
[315420919,1709023838437,-500.0,0.00022899,2]
[315420920,1709023838447,-402.96,0.00022899,2]
[315420921,1709023838456,-500.0,0.00022899,2]
[315420922,1709023838465,-500.0,0.00022899,2]
[315420923,1709023838474,-1705.16,0.00022899,2]
[315420924,1709023838483,-517.54,0.00022899,2]
[315420925,1709023838493,-500.0,0.00022899,2]
[315420926,1709023838502,-500.0,0.00022899,2]
[315420927,1709023838511,-500.0,0.00022899,2]
[315420928,1709023838520,-692.01049296,0.00022899,2]
[315420929,1709023838529,-650.28361118,0.00022899,2]
[315420930,1709023838538,-594.88925172,0.00022899,2]
[315420931,1709023838547,-41794.17521274,0.000229,2]
[315420932,1709023839210,-500.0,0.00022898,2]
[315420933,1709023839222,-2506.60051504,0.000229,2]
[315420934,1709023839235,-2673.64645488,0.000229,2]
[315420935,1709023839247,-20035.02824971,0.000229,2]
[315420936,1709023839259,-63195.3899556,0.000229,2]
[315420937,1709023839269,-223.39233149,0.000229,2]
[315420938,1709023839278,-152.9,0.00022941,2]
[315420939,1709023839287,-223.39233123,0.00022953,2]
[315420940,1709023839297,-2571.58,0.00022953,2]
[315420941,1709023839306,-230.41,0.00022956,2]
[315420942,1709023839315,-167.0,0.0002296,2]
[315420943,1709023839325,-1878.0,0.00022986,2]
[315420944,1709023839334,-7335.06696076,0.00022987,2]
[315420945,1709023839344,-258.91493307,0.00022988,2]
[315420946,1709023839353,-500.0,0.00022988,2]
[315420947,1709023839363,-1269.98,0.00022988,2]
[315420948,1709023839372,-500.0,0.00022988,2]
[315420949,1709023839382,-500.0,0.00022988,2]
[315420950,1709023839393,-573.39095961,0.00022988,2]
[315420951,1709023839403,-500.0,0.00022988,2]
[315420952,1709023839413,-390.41009669,0.00022988,2]
[315420953,1709023839423,-500.0,0.00022988,2]
[315420954,1709023839433,-258.84748164,0.00022988,2]
[315420955,1709023839443,-543.79,0.00022988,2]
[315420956,1709023839453,-500.0,0.00022988,2]
[315420957,1709023839463,-500.0,0.00022988,2]
[315420958,1709023839473,-867.37,0.00022988,2]
[315420959,1709023839482,-500.0,0.00022988,2]
[315420960,1709023839492,-740.76,0.00022988,2]
[315420961,1709023839501,-3136.42,0.00022988,2]
[315420962,1709023839510,-500.0,0.00022988,2]
[315420963,1709023839520,-697.07,0.00022988,2]
[315420964,1709023839529,-34.30995583,0.00022988,2]
[315420965,1709023839560,-212.50830124,0.00022988,2]
[315420966,1709023839570,-500.0,0.00022988,2]
[315420967,1709023839579,-247.96737567,0.00022989,2]
[315420968,1709023839592,-283.28082748,0.00022989,2]
[315420969,1709023839601,-500.0,0.00022989,2]
[315420970,1709023839610,-500.0,0.00022989,2]
[315420971,1709023839620,-500.0,0.00022989,2]
[315420972,1709023839629,-500.0,0.00022989,2]
[315420973,1709023839639,-500.0,0.00022989,2]
[315420974,1709023839649,-500.0,0.00022989,2]
[315420975,1709023839659,-994.1,0.00022989,2]
[315420976,1709023839669,-500.0,0.00022989,2]
[315420977,1709023839678,-284.92,0.00022989,2]
[315420978,1709023839687,-500.0,0.00022989,2]
[315420979,1709023839697,-500.0,0.00022989,2]
[315420980,1709023839706,-480.92565786,0.00022989,2]
[315420981,1709023839844,-19.07434214,0.00022989,2]
[315420982,1709023839854,-500.0,0.00022989,2]
[315420984,1709023839864,-114.4994611,0.00022989,2]
[315420986,1709023839878,-385.5005389,0.00022989,2]
[315420987,1709023839889,-500.0,0.00022989,2]
[315420988,1709023839899,-372.16903577,0.00022989,2]
[315420989,1709023839911,-127.83096423,0.00022989,2]
[315420990,1709023839921,-500.0,0.00022989,2]
[315420992,1709023839931,-216.02585221,0.00022989,2]
[315420995,1709023839945,-283.97414779,0.00022989,2]
[315420997,1709023839955,-500.0,0.00022989,2]
[315420999,1709023839965,-500.0,0.00022989,2]
[315421001,1709023839974,-500.0,0.00022989,2]
[315421003,1709023839984,-500.0,0.00022989,2]
[315421005,1709023839994,-500.0,0.00022989,2]
[315421007,1709023840004,-500.0,0.00022989,2]
[315421010,1709023840017,-500.0,0.00022989,2]
[315421012,1709023840027,-500.0,0.00022989,2]
[315421014,1709023840037,-500.0,0.00022989,2]
[315421016,1709023840047,-500.0,0.00022989,2]
[315421018,1709023840057,-500.0,0.00022989,2]
[315421020,1709023840067,-500.0,0.00022989,2]
[315421022,1709023840077,-2140.06,0.00022989,2]
[315421024,1709023840086,-500.0,0.00022989,2]
[315421026,1709023840097,-500.0,0.00022989,2]
[315421029,1709023840107,-500.0,0.00022989,2]
[315421031,1709023840119,-344.05,0.00022989,2]
[315421033,1709023840128,-500.0,0.00022989,2]
[315421035,1709023840141,-270.92316139,0.00022989,2]
[315421036,1709023840151,-334.78729082,0.00022989,2]
[315421037,1709023840177,-254.16270918,0.00022989,2]
[315421038,1709023840188,-299.03407726,0.00022989,2]
[315421039,1709023840203,-200.96592274,0.00022989,2]
[315421040,1709023840214,-463.92083337,0.00022989,2]
[315421041,1709023840227,-36.07916663,0.00022989,2]
[315421042,1709023840237,-413.81,0.00022989,2]
[315421043,1709023840247,-500.0,0.00022989,2]
[315421044,1709023840258,-500.0,0.00022989,2]
[315421045,1709023840268,-500.0,0.00022989,2]
[315421047,1709023840279,-500.0,0.00022989,2]
[315421049,1709023840290,-518.20817292,0.00022989,2]
[315421051,1709023840300,-500.0,0.00022989,2]
[315421054,1709023840309,-500.0,0.00022989,2]
[315421056,1709023840320,-500.0,0.00022989,2]
[315421058,1709023840330,-500.0,0.00022989,2]
[315421060,1709023840341,-500.0,0.00022989,2]
[315421062,1709023840352,-500.0,0.00022989,2]
[315421064,1709023840362,-500.0,0.00022989,2]
[315421066,1709023840372,-500.0,0.00022989,2]
[315421068,1709023840382,-500.0,0.00022989,2]
[315421071,1709023840394,-569.01,0.00022989,2]
[315421073,1709023840405,-2886.28,0.00022989,2]
[315421075,1709023840415,-637.39,0.00022989,2]
[315421077,1709023840424,-500.0,0.00022989,2]
[315421079,1709023840434,-592.15,0.00022989,2]
[315421081,1709023840444,-713.12,0.00022989,2]
[315421083,1709023840454,-572.45,0.00022989,2]
[315421085,1709023840464,-500.0,0.00022989,2]
[315421087,1709023840474,-386.11,0.00022989,2]
[315421089,1709023840484,-500.0,0.00022989,2]
[315421091,1709023840494,-500.0,0.00022989,2]
[315421094,1709023840504,-500.0,0.00022989,2]
[315421096,1709023840513,-522.35,0.00022989,2]
[315421098,1709023840523,-500.0,0.00022989,2]
[315421100,1709023840534,-500.0,0.00022989,2]
[315421102,1709023840543,-500.0,0.00022989,2]
[315421104,1709023840553,-500.0,0.00022989,2]
[315421106,1709023840563,-500.0,0.00022989,2]
[315421108,1709023840573,-500.0,0.00022989,2]
[315421110,1709023840584,-500.0,0.00022989,2]
[315421112,1709023840594,-1481.01,0.00022989,2]
[315421115,1709023840608,-500.0,0.00022989,2]
[315421117,1709023840618,-739.94,0.00022989,2]
[315421119,1709023840628,-535.69,0.00022989,2]
[315421121,1709023840640,-500.0,0.00022989,2]
[315421123,1709023840650,-554.63939184,0.00022989,2]
[315421126,1709023840660,-3508.75,0.00022989,2]
[315421128,1709023840671,-931.6,0.00022989,2]
[315421130,1709023840681,-500.0,0.00022989,2]
[315421132,1709023840690,-500.0,0.00022989,2]
[315421134,1709023840700,-500.0,0.00022989,2]
[315421136,1709023840710,-500.0,0.00022989,2]
[315421138,1709023840721,-500.0,0.00022989,2]
[315421140,1709023840731,-500.0,0.00022989,2]
[315421142,1709023840740,-500.0,0.00022989,2]
[315421144,1709023840750,-629.95,0.00022989,2]
[315421147,1709023840760,-500.0,0.00022989,2]
[315421149,1709023840770,-500.0,0.00022989,2]
[315421151,1709023840780,-500.0,0.00022989,2]
[315421153,1709023840791,-546.02,0.00022989,2]
[315421155,1709023840801,-500.0,0.00022989,2]
[315421183,1709023841050,-500.0,0.00022989,2]
[315421186,1709023841061,-500.0,0.00022989,2]
[315421188,1709023841070,-500.0,0.00022989,2]
[315421190,1709023841079,-500.0,0.00022989,2]
[315421192,1709023841090,-500.0,0.00022989,2]
[315421194,1709023841099,-284.52820044,0.00022989,2]
[315421196,1709023841113,-215.47179956,0.00022989,2]
[315421198,1709023841123,-506.91,0.00022989,2]
[315421200,1709023841132,-500.0,0.00022989,2]
[315421202,1709023841146,-500.0,0.00022989,2]
[315421204,1709023841156,-500.0,0.00022989,2]
[315421206,1709023841166,-1649.97,0.00022989,2]
[315421208,1709023841175,-304.97,0.00022989,2]
[315421210,1709023841186,-500.0,0.00022989,2]
[315421212,1709023841196,-500.0,0.00022989,2]
[315421214,1709023841206,-198.22346188,0.00022989,2]
[315421217,1709023841219,-301.77653812,0.00022989,2]
[315421219,1709023841228,-333.34515912,0.00022989,2]
[315421221,1709023841241,-1979.69484088,0.00022989,2]
[315421223,1709023841251,-500.0,0.00022989,2]
[315421225,1709023841261,-500.0,0.00022989,2]
[315421227,1709023841271,-233.43054013,0.00022989,2]
[315421229,1709023841281,-500.0,0.00022989,2]
[315421231,1709023841291,-294.85829569,0.00022989,2]
[315421233,1709023841299,-500.0,0.00022989,2]
[315421235,1709023841309,-550.2,0.00022989,2]
[315421237,1709023841318,-500.0,0.00022989,2]
[315421239,1709023841328,-500.0,0.00022989,2]
[315421241,1709023841337,-500.0,0.00022989,2]
[315421243,1709023841347,-500.0,0.00022989,2]
[315421245,1709023841356,-2269.66,0.00022989,2]
[315421247,1709023841366,-516.32,0.00022989,2]
[315421249,1709023841375,-500.0,0.00022989,2]
[315421251,1709023841384,-769.07,0.00022989,2]
[315421253,1709023841394,-136.7663233,0.00022989,2]
[315421255,1709023841407,-281.55,0.00022989,2]
[315421258,1709023841419,-81.6836767,0.00022989,2]
[315421260,1709023841428,-322.60147606,0.0002299,2]
[315421262,1709023841438,-500.0,0.0002299,2]
[315421264,1709023841448,-500.0,0.0002299,2]
[315421266,1709023841457,-500.0,0.0002299,2]
[315421268,1709023841466,-500.0,0.0002299,2]
[315421270,1709023841475,-500.0,0.0002299,2]
[315421272,1709023841485,-478.59464701,0.0002299,2]
[315421274,1709023841494,-500.0,0.0002299,2]
[315421276,1709023841504,-500.0,0.0002299,2]
[315421278,1709023841513,-500.0,0.0002299,2]
[315421280,1709023841523,-526.17218741,0.0002299,2]
[315421282,1709023841532,-500.0,0.0002299,2]
[315421284,1709023841541,-500.0,0.0002299,2]
[315421286,1709023841551,-500.0,0.0002299,2]
[315421288,1709023841560,-500.0,0.0002299,2]
[315421290,1709023841569,-500.0,0.0002299,2]
[315421292,1709023841578,-500.0,0.0002299,2]
[315421294,1709023841587,-500.0,0.0002299,2]
[315421296,1709023841596,-500.0,0.0002299,2]
[315421298,1709023841605,-500.0,0.0002299,2]
[315421300,1709023841616,-500.0,0.0002299,2]
[315421303,1709023841637,-645.6,0.0002299,2]
[315421305,1709023841648,-500.0,0.0002299,2]
[315421307,1709023841659,-500.0,0.0002299,2]
[315421310,1709023841670,-500.0,0.0002299,2]
[315421312,1709023841680,-372.82475855,0.0002299,2]
[315421314,1709023841691,-500.0,0.0002299,2]
[315421316,1709023841702,-500.0,0.0002299,2]
[315421318,1709023841713,-500.0,0.0002299,2]
[315421320,1709023841724,-155.0,0.00022991,2]
[315421322,1709023841735,-1705.16,0.00022995,2]
[315421324,1709023841747,-517.54,0.00022995,2]
[315421326,1709023841759,-524.92450029,0.00022995,2]
[315421328,1709023841770,-236.85396506,0.00022995,2]
[315421332,1709023841794,-263.14603494,0.00022995,2]
[315421334,1709023841804,-59.04396506,0.00022995,2]
[315421336,1709023841817,-440.95603494,0.00022995,2]
[315421338,1709023841827,-1269.98,0.00022995,2]